bitfinex-derivatives/quotes_SOLF0:USTF0_20250224
["timestamp","ask_amount","ask_price","bid_price","bid_amount"]
[1740375737945,0.0429555,160.12,160.09,0.04554413]
[1740375738148,0.0429555,160.12,160.11,6.2449]
[1740375739045,69.40399283,160.17,160.15,6.2432]
[1740375739242,6.2432,160.16,160.1,1.9361]
[1740375739746,69.40399283,160.17,160.1,1.9361]
[1740375739947,6.2439,160.14,160.1,1.9361]
[1740375740249,0.04211732,160.15,160.12,0.04487562]
[1740375740850,0.04211732,160.15,160.14,6.2437]
[1740375744152,1.732e-05,160.15,160.14,6.2437]
[1740375744346,6.2408,160.22,160.18,6.2419]
[1740375744660,1.8484,160.23,160.18,6.2419]
[1740375745544,0.0468148,160.22,160.19,0.04362676]
[1740375746349,6.2414,160.2,160.19,0.04362676]
[1740375746555,0.0468148,160.22,160.19,0.04362676]
[1740375747153,6.2414,160.21,160.19,0.04362676]
[1740375747357,0.0468148,160.22,160.19,0.04362676]
[1740375748558,6.2413,160.21,160.19,0.04362676]
[1740375749552,0.0468148,160.22,160.19,0.04362676]
[1740375749750,6.2414,160.2,160.19,0.04362676]
[1740375750859,0.0468148,160.22,160.19,0.04362676]
[1740375754055,6.2414,160.2,160.19,0.04362676]
[1740375756464,0.0468148,160.22,160.19,6.28512676]
[1740375757060,0.0468148,160.22,160.21,6.241]
[1740375768170,1.48e-05,160.22,160.21,6.241]
[1740375768365,1.48e-05,160.22,160.21,32.09584964]
[1740375770068,69.40399283,160.33,160.21,25.85484964]
[1740375770272,69.40399283,160.33,160.29,6.2377]
[1740375770872,6.2369,160.32,160.29,6.2377]
[1740375771272,6.27822704,160.32,160.29,6.27854502]
[1740375771673,6.27822704,160.32,160.29,0.04084502]
[1740375771674,0.04132704,160.32,160.29,0.04084502]
[1740375772176,6.27812704,160.32,160.29,6.27864502]
[1740375772871,6.2371,160.31,160.29,0.04084502]
[1740375773273,0.04132704,160.32,160.29,0.04084502]
[1740375773472,6.2375,160.3,160.29,0.04084502]
[1740375773971,0.04132704,160.32,160.21,3.9601]
[1740375774176,6.239,160.27,160.21,1.9731]
[1740375774375,6.239,160.27,160.17,107.48423959]
[1740375774376,25.85484964,160.27,160.17,107.48423959]
[1740375774576,25.85484964,160.27,160.2,6.2413]
[1740375774779,25.85484964,160.27,160.17,107.48423959]
[1740375774975,1.9425,160.26,160.17,107.48423959]
[1740375775275,0.04494056,160.24,160.21,0.0403202]
[1740375775983,0.04494056,160.24,160.21,6.2812202]
[1740375777582,6.2403,160.23,160.21,0.0403202]
[1740375778276,0.04494056,160.24,160.21,0.0403202]
[1740375778479,6.28494056,160.24,160.21,6.2812202]
[1740375778682,6.28494056,160.24,160.21,0.0403202]
[1740375779586,6.2406,160.23,160.21,0.0403202]
[1740375780289,0.04494056,160.24,160.21,0.0403202]
[1740375782489,0.04494056,160.24,160.22,6.2403]
[1740375783187,0.04494056,160.24,160.23,6.2402]
[1740375786189,4.056e-05,160.24,160.23,6.2402]
[1740375786390,4.056e-05,160.24,160.23,32.09504964]
[1740375789992,6.2368,160.32,160.29,6.2378]
[1740375790193,71.22339283,160.34,160.29,6.2378]
[1740375790679,1.8194,160.34,160.29,6.2378]
[1740375791285,6.276033,160.33,160.3,0.04430906]
[1740375793197,0.039433,160.33,160.3,6.28160906]
[1740375793394,0.039433,160.33,160.3,0.04430906]
[1740375794396,0.039433,160.33,160.31,6.2371]
[1740375797885,0.039433,160.33,160.3,16.5495469]
[1740375798496,0.039433,160.33,160.32,6.2367]
[1740375801797,0.039433,160.33,160.3,16.5495469]
[1740375802100,0.039433,160.33,160.31,6.237]
[1740375802898,0.039433,160.33,160.3,0.04430906]
[1740375803598,6.275833,160.33,160.3,0.04430906]
[1740375803795,0.039433,160.33,160.3,0.04430906]
[1740375804900,6.2368,160.32,160.3,0.04430906]
[1740375806000,0.039433,160.33,160.3,0.04430906]
[1740375806302,0.039433,160.33,160.31,22.74233784]
[1740375808900,0.039433,160.33,160.31,6.2371]
[1740375809202,0.039433,160.33,160.3,6.28160906]
[1740375809805,6.275833,160.33,160.3,6.28160906]
[1740375810506,6.275833,160.33,160.3,0.04430906]
[1740375811400,0.039433,160.33,160.3,0.04430906]
[1740375811799,6.237,160.32,160.3,0.04430906]
[1740375812195,0.039433,160.33,160.3,0.04430906]
[1740375812398,6.275833,160.33,160.3,6.28160906]
[1740375812703,0.039433,160.33,160.3,0.04430906]
[1740375813506,6.2371,160.31,160.3,0.04430906]
[1740375814704,5.624433,160.33,160.3,0.04430906]
[1740375815405,6.2367,160.32,160.3,0.04430906]
[1740375816806,6.2367,160.32,160.3,6.28180906]
[1740375817998,5.624433,160.33,160.3,0.04430906]
[1740375818204,16.50523784,160.32,160.3,0.04430906]
[1740375818510,6.2371,160.31,160.3,0.04430906]
[1740375819105,16.50523784,160.32,160.3,0.04430906]
[1740375819305,5.624433,160.33,160.3,6.28170906]
[1740375819805,6.237,160.32,160.3,6.28170906]
[1740375821501,6.237,160.32,160.3,0.04430906]
[1740375823206,5.624433,160.33,160.3,0.04430906]
[1740375823407,11.860933,160.33,160.3,6.28160906]
[1740375823610,5.624433,160.33,160.3,0.04430906]
[1740375824108,16.50523784,160.32,160.3,0.04430906]
[1740375824508,6.2371,160.31,160.3,0.04430906]
[1740375824814,16.50523784,160.32,160.3,0.04430906]
[1740375825103,22.74213784,160.32,160.3,0.04430906]
[1740375825410,16.50523784,160.32,160.3,0.04430906]
[1740375825706,16.50523784,160.32,160.3,6.28160906]
[1740375826412,16.50523784,160.32,160.3,0.04430906]
[1740375827512,16.50523784,160.32,160.3,6.28180906]
[1740375829418,16.50523784,160.32,160.3,0.04430906]
[1740375831213,6.2371,160.31,160.3,0.04430906]
[1740375832410,14.8971,160.31,160.3,0.04430906]
[1740375836918,6.2386,160.28,160.25,6.2392]
[1740375837524,22.74383784,160.28,160.25,6.2392]
[1740375837926,22.79117019,160.28,160.25,6.28462999]
[1740375838331,16.55257019,160.28,160.25,6.28462999]
[1740375838523,6.2387,160.27,160.25,6.28462999]
[1740375839733,16.55257019,160.28,160.25,0.04542999]
[1740375839734,22.74433784,160.26,160.25,0.04542999]
[1740375840231,0.04733235,160.28,160.25,16.55066783]
[1740375840829,0.04733235,160.28,160.26,6.2389]
[1740375841527,0.04733235,160.28,160.25,22.78996783]
[1740375844427,0.04733235,160.28,160.25,16.55066783]
[1740375844628,0.04733235,160.28,160.26,6.239]
[1740375845730,0.04733235,160.28,160.27,16.50523784]
[1740375846829,0.04733235,160.28,160.27,22.74393784]
[1740375849434,16.50523784,160.33,160.27,16.50523784]
[1740375849631,16.50523784,160.33,160.3,6.2372]
[1740375850633,16.54680125,160.33,160.3,6.27933964]
[1740375851832,22.78320125,160.33,160.3,6.27933964]
[1740375853037,22.78320125,160.33,160.3,0.04213964]
[1740375853237,6.237,160.32,160.3,0.04213964]
[1740375853437,16.54680125,160.33,160.3,0.04213964]
[1740375853940,22.78350125,160.33,160.3,6.27953964]
[1740375855843,22.74233784,160.31,160.3,0.04213964]
[1740375861742,69.44555624,160.33,160.3,0.04213964]
[1740375861939,67.94555624,160.33,160.3,0.04213964]
[1740375862139,67.94555624,160.33,160.32,6.2367]
[1740375862641,67.94555624,160.34,160.31,6.237]
[1740375862839,16.50523784,160.33,160.3,0.04213964]
[1740375863348,16.50523784,160.33,160.3,6.27943964]
[1740375863743,16.50523784,160.33,160.3,0.04213964]
[1740375863945,6.237,160.32,160.3,0.04213964]
[1740375864640,16.50523784,160.33,160.3,0.04213964]
[1740375864844,22.74173784,160.33,160.3,0.04213964]
[1740375865046,16.50523784,160.33,160.3,0.04213964]
[1740375865239,0.04633315,160.34,160.32,16.50523784]
[1740375865636,0.04633315,160.34,160.33,6.2363]
[1740375866341,120.48562778,160.37,160.36,6.2352]
[1740375867143,103.62658312,160.38,160.35,6.2355]
[1740375867543,103.66941935,160.38,160.37,6.2348]
[1740375868651,103.66941935,160.38,160.35,0.03932312]
[1740375869652,103.66941935,160.38,160.36,6.2352]
[1740375869957,103.66941935,160.38,160.35,0.03932312]
[1740375870446,0.04283623,160.38,160.35,0.03932312]
[1740375870843,16.50523784,160.37,160.35,0.03932312]
[1740375871147,6.2352,160.36,160.35,0.03932312]
[1740375871350,16.50523784,160.37,160.35,0.03932312]
[1740375871954,6.2352,160.36,160.35,0.03932312]
[1740375879656,22.74043784,160.36,160.35,0.03932312]
[1740375880151,31.40043784,160.36,160.35,0.03932312]
[1740375882559,8.66,160.36,160.35,0.03932312]
[1740375882754,22.78277407,160.38,160.35,0.03932312]
[1740375883950,0.04283623,160.38,160.35,0.03932312]
[1740375884260,0.04283623,160.38,160.37,6.2348]
[1740375893666,16.54807407,160.38,160.36,6.2351]
[1740375894066,16.54807407,160.38,160.35,0.03932312]
[1740375894363,16.54807407,160.38,160.36,6.2352]
[1740375895767,16.54807407,160.38,160.37,6.2348]
[1740375897763,16.54807407,160.38,160.35,0.03932312]
[1740375897969,16.50523784,160.36,160.35,0.03932312]
[1740375898467,16.50523784,160.36,160.35,6.27492312]
[1740375898766,0.04283623,160.38,160.35,0.03932312]
[1740375898767,16.54807407,160.38,160.35,0.03932312]
[1740375899369,16.54807407,160.38,160.36,6.235]
[1740375900671,0.04283623,160.38,160.35,0.03932312]
[1740375900875,0.04283623,160.38,160.37,22.74003784]
[1740375902573,0.04283623,160.38,160.37,6.2348]
[1740375903774,0.04283623,160.38,160.35,16.54456096]
[1740375905275,0.04283623,160.38,160.35,6.27472312]
[1740375905874,0.04283623,160.38,160.35,0.03932312]
[1740375907879,0.04283623,160.38,160.36,6.2352]
[1740375908669,0.04283623,160.38,160.35,0.03932312]
[1740375908670,0.04283623,160.38,160.37,6.2348]
[1740375925987,0.04283623,160.38,160.37,22.74003784]
[1740375926787,3.623e-05,160.38,160.37,22.74003784]
[1740375927782,3.623e-05,160.38,160.35,0.03932312]
[1740375927983,16.50527407,160.38,160.35,0.03932312]
[1740375928188,3.623e-05,160.38,160.35,0.03932312]
[1740375928388,3.623e-05,160.38,160.35,6.27472312]
[1740375928586,3.623e-05,160.38,160.35,0.03932312]
[1740375928788,16.50527407,160.38,160.35,0.03932312]
[1740375929086,3.623e-05,160.38,160.35,0.03932312]
[1740375929389,3.623e-05,160.38,160.37,22.74003784]
[1740375931383,69.31311179,160.42,160.41,6.2332]
[1740375931587,69.31311179,160.42,160.41,22.73843784]
[1740375932188,69.31311179,160.44,160.43,6.2325]
[1740375932388,69.31311179,160.44,160.43,22.73773784]
[1740375933393,172.67686443,160.47,160.43,16.50523784]
[1740375933691,172.67686443,160.47,160.46,16.50523784]
[1740375933888,172.67686443,160.47,160.46,22.73653784]
[1740375934492,172.67686443,160.47,160.46,16.50523784]
[1740375935595,0.04307331,160.48,160.46,22.73623784]
[1740375935886,0.04307331,160.48,160.46,16.50523784]
[1740375936794,0.04307331,160.48,160.45,0.03976194]
[1740375936988,16.50523784,160.47,160.45,0.03976194]
[1740375937289,6.2322,160.44,160.39,6.2337]
[1740375937494,16.50523784,160.44,160.38,16.50523784]
[1740375937883,22.73763784,160.44,160.39,6.234]
[1740375938395,0.03988297,160.43,160.4,0.04636489]
[1740375938597,0.03988297,160.43,160.4,6.27996489]
[1740375939096,0.03988297,160.43,160.4,16.55160273]
[1740375939293,0.03988297,160.43,160.42,22.73803784]
[1740375939692,0.00028297,160.43,160.42,31.96732066]
[1740375940893,6.2291,160.52,160.47,6.2306]
[1740375941199,27.52592066,160.53,160.42,25.73452066]
[1740375941398,1.7914,160.53,160.42,25.73452066]
[1740375942101,0.04428539,160.49,160.47,6.2306]
[1740375942603,0.04428539,160.49,160.46,6.27230765]
[1740375943606,0.04428539,160.49,160.48,6.2305]
[1740375945401,0.04428539,160.49,160.46,0.04110765]
[1740375945808,0.04428539,160.49,160.48,6.2305]
[1740375946009,0.04428539,160.49,160.46,0.04110765]
[1740375946509,0.04428539,160.49,160.48,6.2305]
[1740375947810,0.04428539,160.49,160.46,0.04110765]
[1740375947811,0.04428539,160.49,160.47,6.2308]
[1740375948006,0.04428539,160.49,160.46,0.04110765]
[1740375948911,0.04428539,160.49,160.47,6.2309]
[1740375949307,0.04428539,160.49,160.46,0.04110765]
[1740375949514,8.539e-05,160.49,160.46,0.04110765]
[1740375949704,8.539e-05,160.49,160.48,25.73452066]
[1740375949906,1.14211462,160.6,160.48,25.73452066]
[1740375950213,25.73452066,160.58,160.48,25.73452066]
[1740375950415,1.8547,160.57,160.48,25.73452066]
[1740375950608,6.2275,160.56,160.48,25.73452066]
[1740375951012,0.04265883,160.54,160.5,0.0422789]
[1740375953421,0.04265883,160.54,160.53,6.2286]
[1740375954019,0.04265883,160.54,160.52,6.2287]
[1740375954319,0.04265883,160.54,160.5,0.0422789]
[1740375954520,0.04265883,160.54,160.52,6.2288]
[1740375955920,6.2286,160.53,160.5,0.0422789]
[1740375956418,0.04265883,160.54,160.5,0.0422789]
[1740375957020,6.2286,160.53,160.5,0.0422789]
[1740375957320,0.04265883,160.54,160.5,0.0422789]
[1740375957721,6.2289,160.53,160.5,0.0422789]
[1740375958123,0.04265883,160.54,160.5,0.0422789]
[1740375958319,6.2292,160.52,160.5,0.0422789]
[1740375958922,6.2293,160.51,160.5,0.0422789]
[1740375961027,6.2301,160.5,160.46,6.231]
[1740375961232,1.951,160.5,160.42,25.73452066]
[1740375961621,6.2306,160.48,160.45,6.2315]
[1740375962130,0.04524047,160.48,160.45,0.04370119]
[1740375962331,6.231,160.47,160.45,0.04370119]
[1740375965742,6.27594047,160.48,160.45,0.04370119]
[1740375966137,0.04524047,160.48,160.45,0.04370119]
[1740375966337,0.04524047,160.48,160.45,25.77822185]
[1740375966837,0.04524047,160.48,160.46,6.2309]
[1740375967135,0.04524047,160.48,160.45,25.77822185]
[1740375968433,0.04524047,160.48,160.46,6.2313]
[1740375969237,0.04524047,160.48,160.45,0.04370119]
[1740375970634,0.04524047,160.48,160.45,16.51818017]
[1740375971046,0.04524047,160.48,160.45,22.74978017]
[1740375971739,0.04524047,160.48,160.45,0.04370119]
[1740375972037,6.27594047,160.48,160.45,0.04370119]
[1740375972239,0.04524047,160.48,160.45,0.04370119]
[1740375972540,0.04524047,160.48,160.47,6.2309]
[1740375976940,0.04524047,160.48,160.45,0.04370119]
[1740375977332,0.04524047,160.48,160.4,8.64257113]
[1740375977536,6.2316,160.46,160.4,8.64257113]
[1740375977740,6.2316,160.46,160.42,8.64257113]
[1740375978443,6.2323,160.44,160.42,8.64257113]
[1740375978639,0.04639703,160.46,160.41,25.9151753]
[1740375978836,0.04639703,160.46,160.41,16.9748753]
[1740375979142,6.2324,160.44,160.41,16.9748753]
[1740375979342,0.04639703,160.46,160.41,16.9748753]
[1740375979543,6.2327,160.43,160.41,16.9748753]
[1740375979737,6.2327,160.43,160.42,0.03938669]
[1740375981043,0.04639703,160.46,160.41,16.9748753]
[1740375981241,6.2328,160.42,160.41,16.9748753]
[1740375981642,6.2328,160.42,160.38,6.2342]
[1740375981843,25.73743084,160.43,160.36,5.31912503]
[1740375982238,0.04364312,160.41,160.38,0.04699173]
[1740375982438,6.234,160.39,160.38,0.04699173]
[1740375983640,6.2348,160.37,160.36,5.31912503]
[1740375983943,8.66364312,160.41,160.36,5.31912503]
[1740375984743,8.66364312,160.41,160.37,0.04134547]
[1740375984935,0.04364312,160.41,160.37,0.04134547]
[1740375985140,0.04364312,160.41,160.37,6.27584547]
[1740375985340,6.27714312,160.41,160.37,6.27584547]
[1740375985838,0.04364312,160.41,160.37,6.27584547]
[1740375986043,0.04364312,160.41,160.37,0.04134547]
[1740375986446,6.2344,160.38,160.37,0.04134547]
[1740375991850,27.67467396,160.41,160.3,25.73743084]
[1740375992046,6.2356,160.35,160.3,25.73743084]
[1740375992247,6.2356,160.35,160.32,6.2364]
[1740375993049,6.27824349,160.35,160.32,6.27603238]
[1740375994850,6.27824349,160.35,160.32,0.03963238]
[1740375995649,6.2362,160.34,160.32,0.03963238]
[1740375995845,0.04264349,160.35,160.32,0.03963238]
[1740375996150,0.04264349,160.35,160.32,6.27603238]
[1740375997144,0.04264349,160.35,160.32,0.03963238]
[1740375997350,0.04264349,160.35,160.34,6.2359]
[1740375999452,0.04264349,160.35,160.33,16.49805692]
[1740375999646,0.04264349,160.35,160.32,0.03963238]
[1740376000051,6.27834349,160.35,160.32,6.27603238]
[1740376000353,0.04264349,160.35,160.32,6.27603238]
[1740376000751,0.04264349,160.35,160.34,6.2359]
[1740376005653,0.04264349,160.35,160.32,0.03963238]
[1740376006252,6.27824349,160.35,160.32,0.03963238]
[1740376006850,0.04264349,160.35,160.32,0.03963238]
[1740376007057,6.2363,160.33,160.32,0.03963238]
[1740376007454,0.04264349,160.35,160.32,0.03963238]
[1740376007656,6.2362,160.34,160.32,0.03963238]
[1740376008659,0.04264349,160.35,160.32,0.03963238]
[1740376009268,0.04264349,160.35,160.33,6.2361]
[1740376010862,0.04264349,160.35,160.34,6.2359]
[1740376017564,6.2336,160.4,160.35,6.2352]
[1740376017766,6.2351,160.37,160.28,1.8383]
[1740376018564,0.04227377,160.34,160.32,6.2364]
[1740376020866,0.04227377,160.34,160.31,0.04747858]
[1740376021064,0.04227377,160.34,160.33,6.2363]
[1740376021764,0.04227377,160.34,160.33,22.72764359]
[1740376022161,12.5334,160.42,160.33,16.49134359]
[1740376022162,16.49134359,160.42,160.33,16.49134359]
[1740376022363,16.49134359,160.44,160.38,6.2343]
[1740376022666,6.2327,160.43,160.38,6.2343]
[1740376023264,0.04799855,160.42,160.41,6.233]
[1740376023468,22.72284359,160.46,160.41,6.233]
[1740376023668,0.04360081,160.43,160.41,6.233]
[1740376024467,0.04360081,160.43,160.4,0.04451617]
[1740376024771,16.49134359,160.42,160.4,0.04451617]
[1740376024970,6.2332,160.41,160.4,0.04451617]
[1740376025969,25.77051077,160.42,160.32,1.7892]
[1740376026169,6.2347,160.38,160.32,1.7892]
[1740376026363,6.2347,160.38,160.34,6.2358]
[1740376026567,6.2352,160.36,160.32,1.7892]
[1740376026873,6.2352,160.36,160.29,1.8075]
[1740376027260,0.04623236,160.34,160.31,0.0435077]
[1740376027465,0.04623236,160.34,160.33,6.2363]
[1740376028570,0.04623236,160.34,160.31,0.0435077]
[1740376033672,6.28223236,160.34,160.31,0.0435077]
[1740376034171,0.04623236,160.34,160.31,0.0435077]
[1740376035175,0.04623236,160.34,160.31,6.2804077]
[1740376036376,6.28223236,160.34,160.31,0.0435077]
[1740376036575,0.04623236,160.34,160.31,0.0435077]
[1740376037371,0.04623236,160.34,160.31,6.2805077]
[1740376037372,6.28233236,160.34,160.31,6.2805077]
[1740376037974,6.2365,160.33,160.31,0.0435077]
[1740376038275,0.04623236,160.34,160.31,0.0435077]
[1740376038979,6.28233236,160.34,160.31,6.2804077]
[1740376039777,0.04623236,160.34,160.31,0.0435077]
[1740376040479,6.2363,160.33,160.31,0.0435077]
[1740376040676,0.04623236,160.34,160.31,0.0435077]
[1740376041876,6.2363,160.33,160.31,0.0435077]
[1740376042073,0.04623236,160.34,160.31,6.2804077]
[1740376043479,6.2364,160.33,160.31,6.2804077]
[1740376044080,0.04623236,160.34,160.31,6.2804077]
[1740376044286,6.2364,160.33,160.31,6.2804077]
[1740376044678,0.04623236,160.34,160.31,6.2804077]
[1740376044977,6.28233236,160.34,160.31,6.2804077]
[1740376045180,0.04623236,160.34,160.31,6.2804077]
[1740376045383,6.2364,160.33,160.31,6.2804077]
[1740376045580,16.5074833,160.32,160.31,6.2804077]
[1740376046975,16.5074833,160.32,160.31,0.0435077]
[1740376057983,22.7441833,160.32,160.31,0.0435077]
[1740376065988,16.5074833,160.32,160.23,3.7672]
[1740376066196,16.5074833,160.28,160.25,6.2392]
[1740376066492,16.5074833,160.26,160.25,6.2392]
[1740376066697,16.5074833,160.26,160.22,1.8172]
[1740376066893,16.5074833,160.26,160.24,6.2396]
[1740376068199,16.5074833,160.26,160.23,0.04066535]
[1740376068398,16.5074833,160.26,160.23,6.28066535]
[1740376071211,22.7465833,160.26,160.23,6.28066535]
[1740376071416,22.7465833,160.26,160.23,0.04066535]
[1740376072508,16.5074833,160.26,160.23,6.28066535]
[1740376072707,6.28327915,160.27,160.24,16.5074833]
[1740376072708,0.04437915,160.27,160.24,16.5074833]
[1740376072913,0.04437915,160.27,160.26,16.5074833]
[1740376073212,0.04437915,160.27,160.26,22.7465833]
[1740376073514,0.04437915,160.27,160.26,6.2391]
[1740376074513,0.04437915,160.27,160.25,6.2393]
[1740376075518,0.04437915,160.27,160.23,0.04066535]
[1740376075815,22.79066245,160.27,160.23,6.28076535]
[1740376076016,16.55186245,160.27,160.23,0.04066535]
[1740376076818,6.2391,160.26,160.23,6.28076535]
[1740376077115,6.2391,160.26,160.23,0.04066535]
[1740376077811,6.28317915,160.27,160.23,6.28066535]
[1740376078107,22.79066245,160.27,160.23,6.28066535]
[1740376078311,16.55186245,160.27,160.23,0.04066535]
[1740376079012,16.55186245,160.27,160.23,6.28066535]
[1740376079519,22.79076245,160.27,160.23,6.28066535]
[1740376080113,16.55186245,160.27,160.23,0.04066535]
[1740376080915,16.55186245,160.27,160.24,6.2398]
[1740376083920,16.55186245,160.27,160.26,6.2391]
[1740376084119,0.04437915,160.27,160.26,6.2391]
[1740376084320,0.04437915,160.27,160.23,0.04066535]
[1740376084526,0.04437915,160.27,160.25,6.2392]
[1740376084819,0.04437915,160.27,160.23,0.04066535]
[1740376085016,0.04437915,160.27,160.26,16.5074833]
[1740376085222,0.04437915,160.27,160.26,22.7465833]
[1740376087523,0.04437915,160.27,160.26,6.2391]
[1740376091026,0.04437915,160.27,160.24,18.3093833]
[1740376091322,0.04437915,160.27,160.25,6.2393]
[1740376093124,0.04437915,160.27,160.26,6.2391]
[1740376096623,0.04437915,160.27,160.25,6.2394]
[1740376099425,0.04437915,160.27,160.23,0.04066535]
[1740376099426,0.04437915,160.27,160.26,22.7465833]
[1740376100619,0.04437915,160.27,160.24,16.5074833]
[1740376100824,0.04437915,160.27,160.23,0.04066535]
[1740376101427,0.04437915,160.27,160.24,6.2397]
[1740376104829,0.04437915,160.27,160.23,0.04066535]
[1740376105029,0.04437915,160.27,160.25,6.2394]
[1740376106026,0.04437915,160.27,160.23,0.04066535]
[1740376106634,6.2393,160.26,160.23,0.04066535]
[1740376107023,0.04437915,160.27,160.23,0.04066535]
[1740376107329,6.28327915,160.27,160.23,6.28056535]
[1740376108826,6.28327915,160.27,160.23,0.04066535]
[1740376109023,0.04437915,160.27,160.23,0.04066535]
[1740376109431,0.04437915,160.27,160.24,6.2396]
[1740376110824,0.04437915,160.27,160.23,0.04066535]
[1740376111127,0.04437915,160.27,160.26,16.5074833]
[1740376111530,0.04437915,160.27,160.26,22.7465833]
[1740376113434,0.04437915,160.27,160.23,0.04066535]
[1740376113634,0.04437915,160.27,160.23,16.54814865]
[1740376113936,0.04437915,160.27,160.25,16.5074833]
[1740376114132,0.04437915,160.27,160.26,6.2391]
[1740376114937,0.04437915,160.27,160.25,16.5074833]
[1740376115131,0.04437915,160.27,160.25,22.7465833]
[1740376116234,0.04437915,160.27,160.25,6.2391]
[1740376118037,0.04437915,160.27,160.23,16.54814865]
[1740376118636,0.04437915,160.27,160.26,6.2391]
[1740376120333,0.04437915,160.27,160.23,0.04066535]
[1740376120532,0.04437915,160.27,160.23,16.54814865]
[1740376121140,0.04437915,160.27,160.25,6.2391]
[1740376122440,0.04437915,160.27,160.23,16.54814865]
[1740376122745,0.04437915,160.27,160.25,6.2391]
[1740376123645,0.04437915,160.27,160.26,6.2391]
[1740376130550,16.55186245,160.27,160.23,0.04066535]
[1740376130750,16.55186245,160.27,160.13,8.6694294]
[1740376130751,16.5074833,160.24,160.13,8.6694294]
[1740376130950,8.6,160.27,160.13,8.6694294]
[1740376131152,16.5074833,160.19,160.13,8.6694294]
[1740376131448,16.5074833,160.19,160.15,6.2431]
[1740376131647,16.5074833,160.19,160.13,8.6694294]
[1740376131842,16.55497798,160.19,160.15,0.04076309]
[1740376132045,0.04749468,160.19,160.15,0.04076309]
[1740376132543,0.04749468,160.19,160.15,1.92346309]
[1740376132946,0.04749468,160.19,160.16,16.5074833]
[1740376133650,0.04749468,160.19,160.15,1.92346309]
[1740376133941,16.5074833,160.18,160.15,0.04076309]
[1740376134451,22.7498833,160.18,160.15,0.04076309]
[1740376134953,16.5074833,160.16,160.15,0.04076309]
[1740376135153,22.7504833,160.16,160.15,0.04076309]
[1740376135853,6.2441,160.13,160.07,16.5074833]
[1740376136149,16.5074833,160.13,160.07,16.5074833]
[1740376136349,22.7526833,160.11,160.06,1.923]
[1740376136554,16.5074833,160.11,160.05,16.7280294]
[1740376136958,0.03992165,160.1,160.06,0.04174905]
[1740376137357,22.7532833,160.09,160.06,0.04174905]
[1740376139050,6.28532165,160.1,160.06,0.04174905]
[1740376140663,16.5074833,160.09,160.06,0.04174905]
[1740376142567,6.28532165,160.1,160.06,0.04174905]
[1740376143662,0.03992165,160.1,160.06,16.54923235]
[1740376143862,0.03992165,160.1,160.08,16.5074833]
[1740376144351,0.03992165,160.1,160.09,6.2457]
[1740376145157,16.5074833,160.17,160.08,16.5074833]
[1740376145353,16.5074833,160.17,160.12,22.7517833]
[1740376145558,8.6,160.18,160.12,16.5074833]
[1740376145862,8.6,160.18,160.14,16.5074833]
[1740376146056,18.3228833,160.23,160.16,16.5074833]
[1740376146255,16.5074833,160.25,160.18,16.55480573]
[1740376146450,0.04108056,160.21,160.18,16.5074833]
[1740376146652,0.04108056,160.21,160.2,0.03961523]
[1740376150166,0.04108056,160.21,160.2,6.28101523]
[1740376152665,0.04108056,160.21,160.2,0.03961523]
[1740376153767,6.28208056,160.21,160.2,0.03961523]
[1740376154769,0.04108056,160.21,160.2,0.03961523]
[1740376159266,6.28208056,160.21,160.2,0.03961523]
[1740376159770,6.2423,160.18,160.14,6.2435]
[1740376160272,6.2423,160.18,160.1,194.73725117]
[1740376160568,25.82115117,160.21,160.1,194.73725117]
[1740376160871,0.04653453,160.16,160.12,6.28914652]
[1740376161072,6.28963453,160.16,160.12,6.28914652]
[1740376161475,6.28963453,160.16,160.13,6.2441]
[1740376161775,6.28963453,160.16,160.12,0.04464652]
[1740376162474,6.28963453,160.16,160.12,6.28894652]
[1740376163176,0.04653453,160.16,160.12,6.28894652]
[1740376163364,0.04653453,160.16,160.14,6.2437]
[1740376166471,0.04653453,160.16,160.15,6.2433]
[1740376166675,0.04653453,160.16,160.12,0.04464652]
[1740376166879,0.04653453,160.16,160.13,6.2439]
[1740376167778,0.04653453,160.16,160.12,0.04464652]
[1740376169084,6.2433,160.15,160.12,0.04464652]
[1740376171693,0.04653453,160.16,160.12,0.04464652]
[1740376171989,6.28973453,160.16,160.12,6.28914652]
[1740376173081,0.04653453,160.16,160.15,6.2433]
[1740376174396,6.2407,160.22,160.18,6.2419]
[1740376174892,6.2404,160.23,160.13,25.82115117]
[1740376175088,6.2404,160.23,160.19,6.2416]
[1740376175592,6.28181443,160.23,160.19,6.28311801]
[1740376176089,6.28181443,160.23,160.19,0.04151801]
[1740376177299,0.04141443,160.23,160.19,0.04151801]
[1740376177492,6.28171443,160.23,160.19,0.04151801]
[1740376178392,0.04141443,160.23,160.19,0.04151801]
[1740376178588,0.04141443,160.23,160.21,6.2408]
[1740376178993,0.04141443,160.23,160.19,25.86266918]
[1740376179500,6.2382,160.29,160.19,25.86266918]